Workbook

Sheet Arkusz1
B1: kwota szacunkowa
A2: Nr pakietu | B2: Wartość netto: | C2: Wartość szacunkowa brutto | D2: Wartość przeznaczona na sfinansowanie brutto:
A3: 1 | B3: 376000 | C3: 406080 | D3: =C3*98.994692% -> 401997.6453
A4: 2 | B4: 731240 | C4: 789739.2 | D4: =C4*98.994692% -> 781799.8886
A5: 3 | B5: 76600 | C5: 82728 | D5: =C5*98.994692% -> 81896.3288
A6: 4 | B6: 423050 | C6: 456894 | D6: =C6*98.994692% -> 452300.8081
A7: 5 | B7: 25100 | C7: 27108 | D7: =C7*98.994692% -> 26835.48111
A8: 6 | B8: 100950 | C8: 109026 | D8: =C8*98.994692% -> 107929.9529
A9: 7 | B9: 186800 | C9: 201744 | D9: =C9*98.994692% -> 199715.8514
A10: 8 | B10: 113500 | C10: 122580 | D10: =C10*98.994692% -> 121347.6935
A11: 9 | B11: 33600 | C11: 36288 | D11: =C11*98.994692% -> 35923.19383
A12: 10 | B12: 310000 | C12: 334800 | D12: =C12*98.994692% -> 331434.2288
A13: 11 | B13: 97050 | C13: 104814 | D13: =C13*98.994692% -> 103760.2965
A14: 12 | B14: 121310 | C14: 131014.8 | D14: =C14*98.994692% -> 129697.6977
A15: 13 | B15: 14510 | C15: 15670.8 | D15: =C15*98.994692% -> 15513.26019
A16: 14 | B16: 59300 | C16: 64044 | D16: =C16*98.994692% -> 63400.16054
A17: 15 | B17: 84890 | C17: 91681.2 | D17: =C17*98.994692% -> 90759.52156
A18: 16 | B18: 15000 | C18: 16200 | D18: =C18*98.994692% -> 16037.1401
A19: 17 | B19: 24150 | C19: 26082 | D19: =C19*98.994692% -> 25819.79557
A20: 18 | B20: 2000 | C20: 2160 | D20: =C20*98.994692% -> 2138.285347
A21: 19 | B21: 87000 | C21: 93960 | D21: =C21*98.994692% -> 93015.4126
A22: 20 | B22: 67500 | C22: 72900 | D22: =C22*98.994692% -> 72167.13047
A23: 21 | B23: 33500 | C23: 36180 | D23: =C23*98.994692% -> 35816.27957
A24: 22 | B24: 39000 | C24: 42120 | D24: =C24*98.994692% -> 41696.56427
A25: 23 | B25: 29400 | C25: 31752 | D25: =C25*98.994692% -> 31432.7946
A26: 24 | B26: 2700 | C26: 2916 | D26: =C26*98.994692% -> 2886.685219
A27: 25 | B27: 3814.82 | C27: 4120.01 | D27: =C27*98.994692% -> 4078.59121
A28: 26 | B28: 1050 | C28: 1134 | D28: =C28*98.994692% -> 1122.599807
A29: 27 | B29: 126000 | C29: 136080 | D29: =C29*98.994692% -> 134711.9769
A30: 28 | B30: 58500 | C30: 63180 | D30: =C30*98.994692% -> 62544.84641
A31: 29 | B31: 36800 | C31: 39744 | D31: =C31*98.994692% -> 39344.45039
A32: 30 | B32: 3950 | C32: 4266 | D32: =C32*98.994692% -> 4223.113561
A33: 31 | B33: 14820 | C33: 16005.6 | D33: =C33*98.994692% -> 15844.69442
A34: 32 | B34: 1386 | C34: 1496.88 | D34: =C34*98.994692% -> 1481.831746
A35: 33 | B35: 22950 | C35: 24786 | D35: =C35*98.994692% -> 24536.82436
A36: 34 | B36: 6050 | C36: 6534 | D36: =C36*98.994692% -> 6468.313175
A37: 35 | B37: 6965 | C37: 7522.2 | D37: =C37*98.994692% -> 7446.578722
A38: 36 | B38: 19425 | C38: 20979 | D38: =C38*98.994692% -> 20768.09643
A39: 37 | B39: 4400 | C39: 4752 | D39: =C39*98.994692% -> 4704.227764
A40: 38 | B40: 4200 | C40: 4536 | D40: =C40*98.994692% -> 4490.399229
A41: 39 | B41: 10895 | C41: 11766.6 | D41: =C41*98.994692% -> 11648.30943
A42: 40 | B42: 33000 | C42: 35640 | D42: =C42*98.994692% -> 35281.70823
A43: 41 | B43: 29242.59 | C43: 31582 | D43: =C43*98.994692% -> 31264.50363
A44: 42 | B44: 275900 | C44: 297972 | D44: =C44*98.994692% -> 294976.4636
A45: 43 | B45: 64120 | C45: 69249.6 | D45: =C45*98.994692% -> 68553.42823
A46: 44 | B46: 6200 | C46: 6696 | D46: =C46*98.994692% -> 6628.684576
A47: 45 | B47: 55000 | C47: 59400 | D47: =C47*98.994692% -> 58802.84705
A48: 46 | B48: 40000 | C48: 43200 | D48: =C48*98.994692% -> 42765.70694
A49: 47 | B49: 136650 | C49: 147582 | D49: =C49*98.994692% -> 146098.3463
A50: 48 | B50: 23400 | C50: 25272 | D50: =C50*98.994692% -> 25017.93856
A51: 49 | B51: 5350 | C51: 5778 | D51: =C51*98.994692% -> 5719.913304
A52: 50 | B52: 3180 | C52: 3434.4 | D52: =C52*98.994692% -> 3399.873702
A53: 51 | B53: 15250 | C53: 16470 | D53: =C53*98.994692% -> 16304.42577
A54: 52 | B54: 1078155.56 | C54: 1164408 | D54: =C54*98.994692% -> 1152702.113
A55: 53 | B55: 9240.74 | C55: 9980 | D55: =C55*98.994692% -> 9879.670262
A56: 54 | B56: 6000 | C56: 6480 | D56: =C56*98.994692% -> 6414.856042
A57: 55 | B57: 6000 | C57: 6480 | D57: =C57*98.994692% -> 6414.856042
A58: 56 | B58: 6000 | C58: 6480 | D58: =C58*98.994692% -> 6414.856042
A59: 57 | B59: 6000 | C59: 6480 | D59: =C59*98.994692% -> 6414.856042
A60: 58 | B60: 23000 | C60: 24840 | D60: =C60*98.994692% -> 24590.28149
A61: 59 | B61: 19400 | C61: 20952 | D61: =C61*98.994692% -> 20741.36787
A62: 60 | B62: 27000 | C62: 29160 | D62: =C62*98.994692% -> 28866.85219
A63: 61 | B63: 4400 | C63: 4752 | D63: =C63*98.994692% -> 4704.227764
A64: 62 | B64: 100000 | C64: 108000 | D64: =C64*98.994692% -> 106914.2674
A65: 63 | B65: 128000 | C65: 138240 | D65: =C65*98.994692% -> 136850.2622
A66: 64 | B66: 11500 | C66: 12420 | D66: =C66*98.994692% -> 12295.14075
A67: 65 | B67: 3360 | C67: 3628.8 | D67: =C67*98.994692% -> 3592.319383
A68: 66 | B68: 191880 | C68: 207230.4 | D68: =C68*98.994692% -> 205147.0962
A69: 67 | B69: 300120 | C69: 324129.6 | D69: =C69*98.994692% -> 320871.0992
A70: 68 | B70: 3400 | C70: 3672 | D70: =C70*98.994692% -> 3635.08509
A71: Razem: | B71: =SUM(B3:B70) -> 5986104.71 | C71: =SUM(C3:C70) -> 6464993.09 | D71: =SUM(D3:D70) -> 6399999.997
